fUSD/lending_fUSD_20240802
["ID","MTS","AMOUNT","RATE_DAILY","PERIOD"]
[333933906,1722635434172,-830.35,0.00010456,2]
[333933907,1722635434182,-11495.0,0.000106,5]
[333933908,1722635434194,-400.0,0.000107,3]
[333933909,1722635434204,-255.0,0.0001072,2]
[333933910,1722635434214,-800.0,0.000108,3]
[333933911,1722635434224,-360.0,0.00010823,2]
[333933912,1722635434234,-150.0,0.00010874,2]
[333933913,1722635434245,-2750.9935602,0.00010899,2]
[333933914,1722635434255,-2750.99356011,0.00010899,2]
[333933915,1722635434265,-765.66833571,0.00010899,2]
[333933916,1722635434275,-765.66833563,0.00010899,2]
[333933917,1722635434286,-400.0,0.000109,2]
[333933918,1722635434296,-5942.26883463,0.000109,2]
[333933919,1722635434306,-158.67218139,0.000109,2]
[333933920,1722635434316,-1200.0,0.000109,3]
[333933921,1722635434326,-161.49671714,0.000109,2]
[333933922,1722635434337,-346.40082485,0.000109,2]
[333933923,1722635434347,-393.89289717,0.000109,2]
[333933924,1722635434357,-250.0,0.00010959,2]
[333933925,1722635434367,-150.0,0.00010959,2]
[333933926,1722635434378,-347.71,0.00010959,2]
[333933927,1722635434387,-1738.37455,0.0001096,2]
[333933928,1722635434398,-1738.37456,0.0001097,2]
[333933929,1722635434408,-1738.37456,0.0001098,2]
[333933930,1722635434418,-1332.5861725,0.0001099,2]
[333933931,1722635434429,-1738.37456,0.0001099,2]
[333933932,1722635434440,-365.90319948,0.00010997,2]
[333933933,1722635434451,-420.0,0.00010998,2]
[333933934,1722635434461,-420.0,0.00010998,2]
[333933935,1722635434472,-351021.29604572,0.00011,2]
[333933936,1722635434485,-148812.1225,0.00011,2]
[333933937,1722635434497,-710.26876103,0.00011,2]
[333933938,1722635434509,-498.50925661,0.00011,2]
[333933939,1722635434535,-12198.50162832,0.00011,2]
[333933940,1722635434547,-11107.41431585,0.00011,2]
[333933941,1722635434572,-404.89988106,0.00011,2]
[333933942,1722635434585,-154583.6538,0.00011,2]
[333933943,1722635434597,-137332.57172328,0.00011,2]
[333933944,1722635434607,-1470.0016853,0.00011,2]
[333933945,1722635434618,-110041.42659142,0.00011,2]
[333933946,1722635434642,-460.09021387,0.00011,2]
[333933947,1722635434655,-745.0552,0.00011,2]
[333934031,1722635439169,-90352.26223776,0.00011,2]
[333934033,1722635439180,-7266.08921481,0.00011,2]
[333934035,1722635439192,-538.02614359,0.00011,2]
[333934037,1722635439203,-335.125,0.00011,2]
[333934039,1722635439214,-1433.91078519,0.00011,2]
[333934041,1722635439225,-8029.07186713,0.00011,2]
[333934045,1722635439249,-347299.39501631,0.00011,2]
[333934047,1722635439258,-1738.37455,0.00011,2]
[333934049,1722635439268,-385.19,0.00011,2]
[333934051,1722635439277,-385.19,0.00011,2]
[333934053,1722635439287,-385.19,0.00011,2]
[333934055,1722635439296,-385.19,0.00011,2]
[333934057,1722635439306,-385.19,0.00011,2]
[333934059,1722635439315,-385.19,0.00011,2]
[333934061,1722635439324,-385.19,0.00011,2]
[333934063,1722635439334,-385.19,0.00011,2]
[333934064,1722635439343,-385.19,0.00011,2]
[333934066,1722635439353,-385.19,0.00011,2]
[333934068,1722635439362,-385.19,0.00011,2]
[333934070,1722635439372,-385.19,0.00011,2]
[333934072,1722635439381,-385.19,0.00011,2]
[333934074,1722635439391,-385.19,0.00011,2]
[333934076,1722635439400,-385.19,0.00011,2]
[333934077,1722635439409,-385.19,0.00011,2]
[333934079,1722635439419,-385.19,0.00011,2]
[333934081,1722635439428,-385.19,0.00011,2]
[333934083,1722635439438,-385.19,0.00011,2]
[333934085,1722635439448,-385.19,0.00011,2]
[333934087,1722635439458,-385.19,0.00011,2]
[333934089,1722635439468,-385.19,0.00011,2]
[333934091,1722635439478,-385.19,0.00011,2]
[333934093,1722635439488,-385.19,0.00011,2]
[333934095,1722635439497,-385.19,0.00011,2]
[333934097,1722635439507,-385.19,0.00011,2]
[333934099,1722635439516,-385.19,0.00011,2]
[333934101,1722635439525,-385.19,0.00011,2]
[333934103,1722635439534,-385.19,0.00011,2]
[333934105,1722635439544,-385.19,0.00011,2]
[333934107,1722635439553,-385.19,0.00011,2]
[333934109,1722635439562,-385.19,0.00011,2]
[333934111,1722635439572,-385.19,0.00011,2]
[333934113,1722635439582,-385.19,0.00011,2]
[333934115,1722635439591,-1738.37456,0.0001101,2]
[333934117,1722635439600,-891.68121634,0.00011022,2]
[333934118,1722635439610,-4790.79929498,0.00011105,2]
[333934120,1722635439619,-10530.89966624,0.00011105,2]
[333934123,1722635439639,-347.59086137,0.00011105,2]
[333934125,1722635439652,-47972.80333325,0.00011186,2]
[333934128,1722635439662,-2750.99356011,0.00011389,2]
[333934130,1722635439672,-765.66833563,0.00011389,2]
[333934132,1722635439682,-181.65,0.00011389,2]
[333934134,1722635439693,-1600.0,0.000115,4]
[333934136,1722635439703,-800.0,0.00011568,2]
[333934138,1722635439712,-2000.0,0.000116,4]
[333934139,1722635439723,-400.0,0.000117,4]
[333934142,1722635439735,-186.57,0.00011703,2]
[333934144,1722635439745,-265.0,0.00011792,2]
[333934146,1722635439754,-400.0,0.000118,4]
[333934148,1722635439764,-227.58642964,0.00011813,2]
[333934150,1722635439776,-300.0,0.00011813,2]
[333934152,1722635439786,-400.0,0.000119,4]
[333934154,1722635439797,-150.0287669,0.00011928,5]
[333934156,1722635439808,-550.0,0.00012,2]
[333934158,1722635439823,-2254.80721458,0.00012,2]
[333934160,1722635439833,-161.49671714,0.00012,2]
[333934162,1722635439844,-326.60726487,0.00012,2]
[333934164,1722635439855,-360.0,0.00012026,2]
[333934166,1722635439865,-200.0,0.00012073,2]
[333934168,1722635439874,-378.46320987,0.00012096,2]
[333934170,1722635439889,-2372.53035024,0.00012096,2]
[333934172,1722635439900,-765.66833563,0.00012096,2]
[333934174,1722635439911,-1280.66119818,0.00012097,2]
[333934176,1722635439922,-587.0,0.00012098,2]
[333934178,1722635439933,-587.0,0.00012098,2]
[333934180,1722635439944,-169.3394301,0.00012099,2]
[333934182,1722635439954,-6046.66377033,0.000121,120]
[333934184,1722635439966,-3804.36369245,0.000121,120]
[333934201,1722635439978,-22284.39102605,0.000121,120]
[333934202,1722635440169,-16155.0,0.000121,120]
[333934203,1722635440184,-384.59479513,0.000121,120]
[333934204,1722635440197,-781.88578096,0.000121,120]
[333934205,1722635440209,-769.22313,0.000121,120]
[333934208,1722635440220,-28355.42344949,0.000121,120]
[333934210,1722635440232,-734.70866164,0.000121,120]
[333934212,1722635440244,-2919.15964168,0.000121,120]
[333934214,1722635440258,-359.80893374,0.000121,120]
[333934216,1722635440269,-524.88719708,0.000121,120]
[333934219,1722635440285,-84406.03499308,0.000121,120]
[333934249,1722635440566,-1196.71796321,0.000121,120]
[333934251,1722635440578,-1082.17917477,0.000121,120]
[333934254,1722635440590,-20344.67526414,0.000121,120]
[333934327,1722635441304,-385.19,0.00011,2]
[333934329,1722635441314,-385.19,0.00011,2]
[333934331,1722635441323,-385.19,0.00011,2]
[333934333,1722635441333,-385.19,0.00011,2]
[333934335,1722635441343,-385.19,0.00011,2]
[333934337,1722635441353,-385.19,0.00011,2]
[333934339,1722635441362,-31272.95699998,0.000121,120]
[333934341,1722635441373,-1634.77398797,0.000121,120]
[333934343,1722635441384,-260.08778133,0.000121,120]
[333934351,1722635441458,-385.19,0.00011,2]
[333934353,1722635441467,-1475.7,0.000121,120]
[333934355,1722635441478,-3069.67,0.000121,120]
[333934357,1722635441489,-507.88,0.000121,120]
[333934359,1722635441500,-1588.41784623,0.000121,120]
[333934361,1722635441511,-696.37678912,0.000121,120]
[333934363,1722635441523,-443.23700073,0.000121,120]
[333934366,1722635441534,-848.93073398,0.000121,120]
[333934370,1722635441565,-595.3948,0.000121,120]
[333934372,1722635441577,-108859.11171796,0.000121,120]
[333934374,1722635441588,-3072.1,0.000121,120]
[333934377,1722635441599,-82757.37687966,0.000121,120]
[333934380,1722635441618,-1553.90000001,0.000121,120]
[333934381,1722635441629,-4913.6,0.000121,120]
[333934385,1722635441661,-385.19,0.00011,2]
[333934387,1722635441671,-132.1192,0.000121,120]
[333934389,1722635441682,-5734.530702,0.000121,120]
[333934392,1722635441694,-902.44351383,0.000121,120]
[333934394,1722635441705,-508.21638064,0.000121,120]
[333934396,1722635441716,-1462.4635978,0.000121,120]
[333934402,1722635441762,-38471.67015177,0.000121,120]
[333934404,1722635441774,-134820.41592694,0.000121,120]
[333934532,1722635443155,-385.19,0.00011,2]
[333934534,1722635443165,-385.19,0.00011,2]
[333934536,1722635443175,-385.19,0.00011,2]
[333934538,1722635443185,-19069.86607637,0.000121,120]
[333934542,1722635443198,-396.11489439,0.000121,120]
[333934545,1722635443209,-439.39009164,0.000121,120]
[333934548,1722635443221,-268.77602007,0.000121,120]
[333934554,1722635443269,-385.19,0.00011,2]
[333934556,1722635443279,-21894.09159105,0.000121,120]
[333934558,1722635443291,-9992.98876922,0.000121,120]
[333934561,1722635443303,-1499.8299996,0.000121,120]
[333934571,1722635443390,-67906.7113754,0.000121,120]
[333934573,1722635443402,-791.68781801,0.000121,120]
[333934575,1722635443413,-681.83583395,0.000121,120]
[333934577,1722635443424,-668.32088581,0.000121,120]
[333934583,1722635443469,-385.19,0.00011,2]
[333934585,1722635443478,-83045.25614806,0.000121,120]
[333934587,1722635443490,-1525.89478508,0.000121,120]
[333934589,1722635443501,-567.4572017,0.000121,120]
[333934591,1722635443513,-472.33752837,0.000121,120]
[333934594,1722635443524,-6214.57642758,0.000121,120]
[333934596,1722635443536,-451.88977681,0.000121,120]
[333934598,1722635443547,-400108.53891999,0.000121,120]
[333934600,1722635443558,-343.60081752,0.000121,120]
[333934602,1722635443570,-1750.91473499,0.000121,120]
[333934870,1722635446399,-385.19,0.00011,2]
[333934872,1722635446409,-385.19,0.00011,2]
[333934874,1722635446420,-65.59661551,0.00011,2]
[333934876,1722635446433,-319.59338449,0.00011,2]
[333934878,1722635446443,-1680.40661551,0.000121,120]
[333934881,1722635446456,-84695.88916354,0.000121,120]
[333934883,1722635446468,-652005.95038424,0.000121,120]
[333934921,1722635446925,-29430.03476017,0.000121,120]
[333934926,1722635446970,-429.75631163,0.000121,120]
[333934928,1722635446982,-408.48752001,0.000121,120]
[333934930,1722635446994,-12006.86003465,0.000121,120]
[333934933,1722635447006,-629.27928532,0.000121,120]
[333934935,1722635447018,-882.1746128,0.000121,120]
[333934942,1722635447084,-281.0,0.000121,120]
[333934945,1722635447096,-1265.18101471,0.000121,120]
[333934947,1722635447108,-2132.121071,0.000121,120]
[333934949,1722635447120,-79626.38953599,0.000121,120]
[333934951,1722635447132,-15449.70637405,0.000121,120]
[333934953,1722635447144,-304.97,0.000121,120]
[333934957,1722635447168,-403.24038404,0.000121,120]
[333934959,1722635447180,-3261.60154885,0.000121,120]
[333934961,1722635447195,-622.22852932,0.000121,120]
[333934964,1722635447207,-522410.67283497,0.000121,120]
[333934966,1722635447219,-65131.00000001,0.000121,120]
[333934968,1722635447231,-2644.52968094,0.000121,120]
[333934970,1722635447243,-450.59466083,0.000121,120]
[333934972,1722635447255,-1184.13996,0.000121,120]
[333934975,1722635447266,-3399.39625553,0.000121,120]
[333934978,1722635447295,-9325.65345957,0.000121,120]
[333934981,1722635447307,-842.16023849,0.000121,120]
[333934983,1722635447319,-1838.93246942,0.000121,120]
[333934985,1722635447331,-6083.44213631,0.000121,120]
[333934987,1722635447342,-439.48896357,0.000121,120]
[333934989,1722635447354,-1532.24105838,0.000121,120]
[333934992,1722635447366,-3974.87224051,0.000121,120]
[333934997,1722635447405,-1578.425175,0.000121,120]
[333935080,1722635859098,150.0,8.748e-05,2]
[333935081,1722635859122,150.0,8.748e-05,2]
[333935082,1722635859145,150.0,8.748e-05,2]
[333935083,1722635859168,267.70211991,8.748e-05,2]
[333935084,1722635859191,112.86788009,8.748e-05,2]
[333935085,1722635947743,150.0,8.748e-05,2]
[333935086,1722635947765,150.0,8.748e-05,2]
[333935087,1722635947788,150.0,8.748e-05,2]
[333935088,1722635947809,150.0,8.748e-05,2]
[333935089,1722635947831,150.0,8.748e-05,2]
[333935090,1722635947853,150.0,8.748e-05,2]
[333935091,1722635947874,150.0,8.748e-05,2]
[333935092,1722635947896,150.0,8.748e-05,2]
[333935093,1722635947918,150.0,8.748e-05,2]
[333935094,1722635948037,150.0,8.748e-05,2]
[333935095,1722635948059,150.0,8.748e-05,2]
[333935096,1722635948082,150.0,8.748e-05,2]
[333935097,1722635948102,150.0,8.748e-05,2]
[333935098,1722635948123,150.0,8.748e-05,2]
[333935099,1722635948144,150.0,8.748e-05,2]
[333935100,1722635948166,150.0,8.748e-05,2]
[333935101,1722635948188,150.0,8.748e-05,2]
[333935102,1722635948210,150.0,8.748e-05,2]
[333935103,1722635948232,150.0,8.748e-05,2]
[333935104,1722635948252,150.0,8.748e-05,2]
[333935105,1722635948273,150.0,8.748e-05,2]
[333935106,1722635948297,12147.94036149,8.748e-05,2]
[333935108,1722635984823,802.30886682,8.748e-05,2]
[333935109,1722635988567,227.58642964,8.748e-05,2]
[333935110,1722636052773,150.0,8.748e-05,2]
[333935111,1722636052795,150.0,8.748e-05,2]
[333935112,1722636052817,150.0,8.748e-05,2]
[333935113,1722636052837,150.0,8.748e-05,2]
[333935114,1722636052857,150.0,8.748e-05,2]
[333935115,1722636052878,103.15892876,8.748e-05,2]
[333935117,1722636099798,150.0,8.748e-05,2]
[333935118,1722636099822,77.58642964,8.748e-05,2]
[333935119,1722636114521,227.58642964,8.748e-05,2]
[333935121,1722636159033,900.0,8.748e-05,2]
[333935123,1722636211506,227.58642964,8.748e-05,2]
[333935124,1722636224509,227.58642964,8.748e-05,2]
[333935127,1722636319387,150.0,8.539e-05,2]
[333935128,1722636319411,150.0,8.539e-05,2]
[333935129,1722636319437,489.04,8.539e-05,2]
[333935130,1722636345520,150.0,8.748e-05,2]
[333935131,1722636345541,77.58642964,8.748e-05,2]
[333935134,1722636399888,72.41357036,8.406e-05,2]
[333935135,1722636399911,78.01642964,8.406e-05,2]
[333935136,1722636405339,71.98357036,8.748e-05,2]
[333935137,1722636405360,150.0,8.748e-05,2]
[333935138,1722636405382,228.01642964,8.748e-05,2]
[333935139,1722636446536,44.63132243,8.748e-05,2]
[333935140,1722636446560,182.95510721,8.748e-05,2]
[333935142,1722636498275,300.0,8.748e-05,2]
[333935143,1722636563533,227.58642964,8.748e-05,2]
[333935145,1722636593532,227.58642964,8.748e-05,2]
[333935181,1722636633320,-300.0,9.999e-05,2]
[333935183,1722636633331,-778.44321162,0.0001,2]
[333935185,1722636633342,-102.40684265,0.0001,2]
[333935188,1722636633355,-310.38172011,0.0001,2]
[333935190,1722636633365,-156.99277092,0.0001,2]
[333935192,1722636633375,-169.56146874,0.0001,2]
[333935194,1722636633386,-1289.99440829,0.0001,2]
[333935195,1722636633398,-512.975,0.0001,2]
[333935197,1722636633410,-7695.48831271,0.0001,2]
[333935200,1722636633431,-359.16532702,0.0001,2]
[333935202,1722636633444,-2081.08675534,0.0001,2]
[333935203,1722636633458,-10037.49302983,0.0001,2]
[333935204,1722636633469,-168.16,0.00010342,2]
[333935205,1722636633479,-178.19,0.00010342,2]
[333935206,1722636633489,-4120.63,0.00010438,2]
[333935207,1722636633500,-2000.0,0.00010464,2]
[333935208,1722636633510,-156.9927709,0.00010467,2]
[333935209,1722636633521,-180.0,0.00010489,2]
[333935210,1722636633531,-250.0,0.00010493,2]
[333935211,1722636633542,-200.0,0.00010508,2]
[333935212,1722636633552,-304.55,0.00010508,2]
[333935213,1722636633562,-856.0,0.00010513,2]
[333935214,1722636633573,-1828.0,0.000106,5]
[333935215,1722636633583,-937.99452106,0.00010603,2]
[333935216,1722636633594,-348.15261591,0.00010603,2]
[333935217,1722636633604,-200.58822148,0.00010603,10]
[333935218,1722636633614,-161.64,0.00010645,2]
[333935219,1722636633623,-1261.27,0.00010645,2]
[333935220,1722636633633,-911.09,0.00010645,2]
[333935221,1722636633643,-161.64,0.0001065,2]
[333935222,1722636633653,-161.64,0.00010655,2]
[333935223,1722636633664,-161.64,0.0001066,2]
[333935224,1722636633673,-161.64,0.00010665,2]
[333935225,1722636633684,-161.64,0.00010669,2]
[333935226,1722636633694,-161.64,0.00010674,2]
[333935227,1722636633704,-161.64,0.00010679,2]
[333935228,1722636633714,-161.64,0.00010684,2]
[333935229,1722636633724,-161.64,0.00010689,2]
[333935230,1722636633735,-161.64,0.00010694,2]
[333935231,1722636633745,-150.0,0.00010694,2]
[333935232,1722636633755,-161.64,0.00010698,2]
[333935233,1722636633765,-746.02,0.00010769,2]
[333935234,1722636633776,-789.04,0.00010803,2]
[333935235,1722636633786,-250.0,0.00010959,2]
[333935236,1722636633796,-790.25,0.00010959,2]
[333935237,1722636633806,-420.0,0.00010999,2]
[333935238,1722636633816,-500.0,0.00011,2]
[333935239,1722636633825,-499.99,0.00011012,2]
[333935240,1722636633836,-156.9927709,0.00011034,2]
[333935241,1722636633846,-1666.81,0.00011104,2]
[333935242,1722636633856,-24993.83053662,0.00011105,2]
[333935243,1722636633866,-2838.6219248,0.00011186,2]
[333935244,1722636633876,-183.11,0.00011219,2]
[333935245,1722636633886,-1500.0,0.000113,4]
[333935246,1722636633896,-3000.0,0.000114,4]
[333935247,1722636633906,-4500.0,0.000115,4]
[333935248,1722636633916,-6000.0,0.000116,4]
[333935249,1722636633927,-156.9927709,0.00011601,2]
[333935250,1722636633937,-178.19,0.00011635,2]
[333935251,1722636633946,-7500.0,0.000117,4]
[333935252,1722636633956,-1500.0,0.000118,4]
[333935253,1722636633966,-150.0,0.00011809,2]
[333935254,1722636633976,-150.0,0.00011813,2]
[333935255,1722636633986,-150.0,0.00011814,2]
[333935256,1722636633996,-150.0,0.00011815,2]
[333935257,1722636634005,-150.0,0.0001182,2]
[333935258,1722636634015,-150.0,0.00011823,2]
[333935259,1722636634025,-856.0,0.00011828,2]
[333935260,1722636634035,-150.0,0.00011832,2]
[333935261,1722636634044,-150.0,0.00011839,2]
[333935262,1722636634054,-150.0,0.00011842,2]
[333935263,1722636634064,-150.0,0.0001185,2]
[333935264,1722636634073,-1505.10451575,0.00011851,2]
[333935265,1722636634083,-150.0,0.0001186,2]
[333935266,1722636634093,-150.0,0.00011861,2]
[333935267,1722636634103,-150.0,0.00011861,2]
[333935268,1722636634112,-150.0,0.00011869,2]
[333935269,1722636634122,-150.0,0.0001187,2]
[333935270,1722636634132,-150.0,0.00011871,2]
[333935271,1722636634142,-150.0,0.00011872,2]
[333935272,1722636634153,-1500.0,0.00011874,2]
[333935273,1722636634162,-150.0,0.00011876,2]
[333935274,1722636634172,-150.0,0.00011884,2]
[333935275,1722636634182,-150.0,0.00011888,2]
[333935276,1722636634192,-150.0,0.00011892,2]
[333935277,1722636634201,-150.0,0.00011897,2]
[333935278,1722636634215,-6850.19464163,0.000119,2]
[333935279,1722636634224,-1500.0,0.000119,4]
[333935280,1722636634234,-150.0,0.00011903,2]
[333935281,1722636634244,-150.0,0.00011904,2]
[333935282,1722636634255,-150.0,0.00011914,2]
[333935283,1722636634265,-150.0,0.00011915,2]
[333935284,1722636634275,-150.0,0.00011915,2]
[333935285,1722636634285,-150.0,0.00011919,2]
[333935286,1722636634295,-150.0,0.0001192,2]
[333935287,1722636634304,-150.0,0.00011923,2]
[333935288,1722636634315,-150.0,0.00011923,2]
[333935289,1722636634324,-150.0,0.00011925,2]
[333935290,1722636634335,-150.0,0.00011926,2]
[333935291,1722636634345,-150.0,0.00011928,2]
[333935292,1722636634355,-150.0,0.00011928,2]
[333935293,1722636634364,-150.0,0.0001193,2]
[333935294,1722636634374,-150.0,0.00011933,2]
[333935295,1722636634384,-150.0,0.00011934,2]
[333935296,1722636634393,-150.0,0.00011935,2]
[333935297,1722636634403,-150.0,0.00011938,2]
[333935298,1722636634413,-150.0,0.00011942,2]
[333935299,1722636634423,-150.0,0.00011942,2]
[333935300,1722636634433,-150.0,0.00011947,2]
[333935301,1722636634443,-1500.0,0.00011948,2]
[333935302,1722636634453,-150.0,0.00011948,2]
[333935303,1722636634462,-150.0,0.00011952,2]
[333935304,1722636634472,-150.0,0.00011956,2]
[333935305,1722636634482,-150.0,0.00011958,2]
[333935306,1722636634492,-150.0,0.00011958,2]
[333935307,1722636634502,-150.0,0.00011962,2]
[333935308,1722636634512,-150.0,0.00011963,2]
[333935309,1722636634521,-150.0,0.00011964,2]
[333935310,1722636634531,-150.0,0.00011968,2]
[333935311,1722636634541,-150.0,0.00011969,2]
[333935312,1722636634550,-1500.0,0.00011981,2]
[333935313,1722636634560,-150.0,0.00011981,2]
[333935314,1722636634570,-150.0,0.00011981,2]
[333935315,1722636634579,-150.0,0.00011982,2]
[333935316,1722636634589,-150.0,0.00011983,2]
[333935317,1722636634598,-150.0,0.00011986,2]
[333935318,1722636634608,-150.0,0.00011987,2]
[333935319,1722636634617,-3229.84392051,0.00011993,2]
[333935320,1722636634627,-150.0,0.00011994,2]
[333935321,1722636634636,-150.0,0.00011995,2]
[333935322,1722636634646,-150.0,0.00011997,2]
[333935323,1722636634657,-248.97445167,0.00011999,2]
[333935324,1722636634666,-550.0,0.00012,2]
[333935325,1722636634676,-2147.86361307,0.00012,2]
[333935326,1722636634686,-2147.86361307,0.00012,2]
[333935327,1722636634695,-176.21753282,0.00012,2]
[333935328,1722636634705,-376.10116488,0.00012,2]
[333935329,1722636634714,-343.17055141,0.00012,2]
[333935330,1722636634724,-535.55795699,0.00012,2]
[333935331,1722636634734,-169.51300804,0.00012,2]
[333935332,1722636634743,-176.76776976,0.00012,2]
[333935333,1722636634752,-150.0,0.00012001,2]
[333935334,1722636634762,-150.0,0.00012004,2]
[333935335,1722636634784,-150.0,0.00012008,2]
[333935336,1722636634794,-150.0,0.00012012,2]
[333935337,1722636634803,-150.0,0.00012015,2]
[333935338,1722636634813,-150.0,0.00012016,2]
[333935339,1722636634825,-150.0,0.00012016,2]
[333935340,1722636634834,-150.0,0.00012016,2]
[333935341,1722636634844,-150.0,0.00012016,2]
[333935342,1722636634857,-150.0,0.0001202,2]
[333935343,1722636634867,-150.0,0.00012022,2]
[333935344,1722636634876,-150.0,0.00012022,2]
[333935345,1722636634887,-150.0,0.00012022,2]
[333935346,1722636634897,-150.0,0.00012027,2]
[333935347,1722636634917,-150.0,0.00012028,2]
[333935348,1722636634928,-150.0,0.00012031,2]
[333935349,1722636634937,-1500.0,0.00012039,2]
[333935350,1722636634948,-150.0,0.0001204,2]
[333935351,1722636634958,-150.0,0.00012043,2]
[333935352,1722636634969,-150.0,0.00012047,2]
[333935353,1722636634979,-150.0,0.00012047,2]
[333935354,1722636634989,-150.0,0.00012051,2]
[333935355,1722636634999,-150.0,0.00012053,2]
[333935356,1722636635010,-150.0,0.00012054,2]
[333935357,1722636635020,-150.0,0.00012056,2]
[333935358,1722636635031,-150.0,0.00012057,2]
[333935359,1722636635041,-150.0,0.00012057,2]
[333935360,1722636635219,-150.0,0.00012061,2]
[333935361,1722636635231,-150.0,0.00012062,2]
[333935362,1722636635241,-150.0,0.00012071,2]
[333935363,1722636635254,-150.0,0.00012076,2]
[333935364,1722636635265,-150.0,0.00012079,2]
[333935365,1722636635274,-150.0,0.00012079,2]
[333935366,1722636635286,-150.0,0.00012079,2]
[333935367,1722636635296,-150.0,0.0001208,2]
[333935368,1722636635306,-150.0,0.0001208,2]
[333935369,1722636635318,-150.0,0.00012082,2]
[333935370,1722636635327,-150.0,0.00012083,2]
[333935371,1722636635337,-161.81,0.00012088,2]
[333935372,1722636635346,-1828.227038,0.00012093,2]
[333935373,1722636635356,-3905.4611199,0.00012093,2]
[333935374,1722636635365,-150.0,0.00012093,2]
[333935375,1722636635375,-234.89482181,0.00012098,2]
[333935376,1722636635385,-82522.28152458,0.00012098,2]
[333935377,1722636635436,-1432.42080998,0.00012098,2]
[333935378,1722636635448,-124477.99999998,0.00012098,2]
[333935379,1722636635461,-3351.46930057,0.00012098,2]
[333935380,1722636635477,-530.0,0.00012098,2]
[333935386,1722636638362,-355.28,0.00011095,2]
[333935387,1722636638371,-355.28,0.00011095,2]
[333935388,1722636638381,-355.28,0.00011095,2]
[333935389,1722636638390,-355.28,0.00011095,2]
[333935390,1722636638399,-355.28,0.00011176,2]
[333935391,1722636638409,-355.28,0.0001139,2]
[333935392,1722636638419,-355.28,0.0001149,2]
[333935393,1722636638428,-109.54,0.0001159,2]
[333935397,1722636638869,-245.74,0.0001159,2]
[333935400,1722636638884,-218.84898707,0.0001169,2]
[333935402,1722636638898,-136.43101293,0.0001169,2]
[333935404,1722636638908,-355.28,0.0001179,2]
[333935406,1722636638919,-150.0,0.00011815,2]
[333935409,1722636638930,-150.0,0.00011819,2]
[333935411,1722636638940,-150.0,0.00011826,2]
[333935413,1722636638950,-150.0,0.00011827,2]
[333935415,1722636638961,-150.0,0.00011829,2]
[333935417,1722636638970,-150.0,0.00011834,2]
[333935420,1722636638981,-355.28,0.00011841,2]
[333935421,1722636638990,-150.0,0.00011843,2]
[333935423,1722636639000,-150.0,0.00011845,2]
[333935425,1722636639010,-150.0,0.00011851,2]
[333935427,1722636639020,-150.0,0.00011851,2]
[333935429,1722636639030,-150.0,0.00011852,2]
[333935432,1722636639039,-150.0,0.00011856,2]
[333935434,1722636639049,-150.0,0.00011859,2]
[333935436,1722636639058,-150.0,0.00011862,2]
[333935438,1722636639068,-150.0,0.00011864,2]
[333935440,1722636639078,-150.0,0.00011867,2]
[333935442,1722636639087,-150.0,0.00011867,2]